bitfinex/quotes_ETHUSD_20260103
["timestamp","ask_amount","ask_price","bid_price","bid_amount"]
[1767446192883,0.00080144,3103.2,3102.6,6.32324877]
[1767446193884,0.00080144,3103.2,3102.7,2.25519605]
[1767446195495,0.00080144,3103.2,3102.8,2.25519605]
[1767446197869,0.00080144,3103.2,3102.6,0.001]
[1767446197870,2.65146209,3103.2,3102.6,0.001]
[1767446199791,2.65146209,3103.2,3102.6,3.22409126]
[1767446199994,2.32895471,3103.2,3102.6,5.47928731]
[1767446200490,0.00080144,3103.2,3102.6,5.47928731]
[1767446200796,0.00080144,3103.2,3102.7,2.25519605]
[1767446203815,0.00080144,3103.2,3102.8,2.25519605]
[1767446205310,0.00280144,3103.2,3102.8,2.25519605]
[1767446211334,0.002,3103.4,3103.0,2.25519605]
[1767446212399,0.00280184,3103.6,3103.2,2.25519605]
[1767446212730,0.00280184,3103.6,3103.3,2.25519605]
[1767446214501,0.00066013,3103.8,3103.3,2.25519605]
[1767446214724,0.00066013,3103.8,3103.4,2.25519605]
[1767446214930,0.00066013,3103.8,3103.5,2.25519605]
[1767446215498,0.00066013,3103.8,3103.4,0.87007738]
[1767446220779,0.00066013,3103.8,3103.4,4.09234419]
[1767446221265,0.00066013,3103.8,3103.4,0.87007738]
[1767446222340,0.00066013,3103.8,3103.4,4.09233985]
[1767446223861,0.00066013,3103.8,3103.4,6.39614206]
[1767446224069,0.00066013,3103.8,3103.5,2.30380221]
[1767446224235,0.002,3103.9,3103.4,4.09233985]
[1767446224559,0.002,3103.9,3103.4,5.52606468]
[1767446225560,0.002,3103.9,3103.4,2.30380221]
[1767446226070,2.31024188,3103.9,3103.2,5.52705938]
[1767446226272,2.30824188,3103.7,3102.8,0.00180152]
[1767446226564,0.87599752,3103.6,3102.9,2.30380221]
[1767446226757,0.87599752,3103.6,3102.9,5.52653577]
[1767446226758,0.00080192,3103.6,3102.9,5.52653577]
[1767446227135,2.3090438,3103.6,3102.9,5.52653577]
[1767446228032,2.3090438,3103.6,3102.9,3.22273356]
[1767446228439,2.3090438,3103.6,3102.8,3.22469696]
[1767446228738,2.30824188,3103.5,3102.8,3.22469696]
[1767446228938,2.30824188,3103.5,3102.9,0.95964738]
[1767446229662,2.30824188,3103.5,3102.9,3.26344959]
[1767446230461,0.00080192,3103.6,3103.0,3.22268772]
[1767446230969,0.00280192,3103.6,3103.0,3.22268772]
[1767446232668,2.3110438,3103.6,3102.9,6.48721824]
[1767446235293,2.3110438,3103.6,3103.0,4.19386692]
[1767446235587,5.5331132,3103.6,3103.0,4.19386692]
[1767446235787,5.5331132,3103.6,3103.0,3.22267644]
[1767446235987,5.5331132,3103.6,3102.9,5.52754669]
[1767446236687,2.30824188,3103.5,3102.9,0.001]
[1767446236887,2.30824188,3103.5,3102.9,3.2237789]
[1767446237063,0.00280192,3103.6,3103.1,2.30380221]
[1767446237466,0.00280192,3103.6,3103.2,2.33602701]
[1767446237674,0.002,3103.9,3103.4,2.30380221]
[1767446239584,0.002,3103.6,3103.4,5.52605991]
[1767446239891,0.002,3103.9,3103.5,2.30380221]
[1767446241569,0.002,3103.9,3103.5,5.5259553]
[1767446242188,0.002,3103.9,3103.5,6.4007873]
[1767446242588,0.002,3103.9,3103.5,3.17863421]
[1767446242783,0.002,3103.9,3103.5,5.52594673]
[1767446244967,0.002,3103.9,3103.5,2.30380221]
[1767446245693,0.002,3103.9,3103.5,5.52596212]
[1767446245878,0.002,3103.9,3103.5,2.30380221]
[1767446247099,0.002,3103.9,3103.5,5.52696707]
[1767446247808,0.002,3103.9,3103.5,5.52496707]
[1767446251710,0.00080136,3104.0,3103.6,2.42451619]
[1767446253383,0.00080136,3104.0,3103.6,5.64456147]
[1767446254783,0.00080136,3104.0,3103.6,5.62734218]
[1767446256316,0.00280136,3104.0,3103.6,2.4052969]
[1767446258109,0.00280136,3104.0,3103.5,4.09785537]
[1767446258312,2.42786393,3104.0,3103.5,0.001]
[1767446261544,2.42506257,3103.9,3103.5,0.001]
[1767446264044,0.00280136,3104.0,3103.5,0.001]
[1767446264226,0.00280136,3104.0,3103.5,0.03322168]
[1767446264431,0.00280136,3104.0,3103.5,0.001]
[1767446265428,0.002,3103.9,3103.5,0.001]
[1767446269245,0.002,3103.9,3103.5,2.42551619]
[1767446271151,0.002,3103.9,3103.5,5.64767458]
[1767446273857,2.42706257,3103.9,3103.5,0.001]
[1767446274048,2.67004896,3103.9,3103.5,0.001]
[1767446276258,2.42706257,3103.9,3103.5,0.001]
[1767446290305,2.47563905,3103.8,3103.5,0.001]
[1767446290716,2.47563905,3103.7,3103.2,0.000802]
[1767446291017,2.47563905,3103.5,3102.9,3.22378262]
[1767446291317,0.000802,3103.6,3102.9,3.22378262]
[1767446291318,2.47563905,3103.3,3102.9,3.22378262]
[1767446292419,2.47563905,3103.3,3102.9,0.001]
[1767446296938,0.24764411,3103.4,3102.9,0.001]
[1767446299794,2.72328316,3103.4,3102.9,0.001]
[1767446303299,2.47563905,3103.4,3102.9,0.001]
[1767446304426,5.69854842,3103.6,3102.9,0.001]
[1767446304626,2.47644105,3103.6,3102.9,2.4901318]
[1767446305331,0.000802,3103.6,3103.1,2.4891318]
[1767446305625,0.000802,3103.6,3103.2,2.5213566]
[1767446306130,0.002,3103.9,3103.3,2.4891318]
[1767446307610,0.002,3103.9,3103.5,2.4891318]
[1767446309012,0.002,3103.9,3103.5,5.70926495]
[1767446309938,0.002,3103.9,3103.6,2.45023401]
[1767446315348,0.002,3103.9,3103.4,2.45023401]
[1767446316449,0.002,3103.9,3103.3,3.22233793]
[1767446317645,0.002,3103.9,3103.3,4.28613685]
[1767446318648,0.002,3103.9,3103.3,6.73637086]
[1767446318819,0.002,3103.9,3103.4,2.45023401]
[1767446319736,0.002,3103.9,3103.5,3.22216851]
[1767446321055,0.002,3103.9,3103.4,5.67245786]
[1767446323360,0.002,3103.9,3103.4,6.75290504]
[1767446329959,0.002,3103.9,3103.5,2.45023401]
[1767446331462,0.002,3103.9,3103.5,5.67234236]
[1767446346359,0.002,3103.9,3103.5,5.67334236]
[1767446353073,0.002,3103.9,3103.6,2.37991675]
[1767446353276,0.002,3103.9,3103.6,2.34769611]
[1767446354473,0.002,3103.9,3103.5,3.22310835]
[1767446354777,0.002,3103.9,3103.6,2.37991675]
[1767446355246,0.002,3103.9,3103.6,5.5697017]
[1767446356072,2.3688773,3104.4,3103.7,3.22697712]
[1767446356275,2.3688773,3104.4,3103.8,0.03221857]
[1767446357381,2.3688773,3104.4,3103.7,6.44884096]
[1767446358646,2.3688773,3104.4,3103.7,9.67080184]
[1767446360586,0.00280128,3104.4,3103.8,2.37991468]
[1767446360875,0.00280128,3104.4,3103.9,3.31799815]
[1767446361588,0.00280128,3104.4,3104.0,2.34769611]
[1767446362268,0.00280128,3104.4,3104.0,5.56933139]
[1767446365179,0.00280128,3104.4,3103.8,5.56948292]
[1767446365885,0.00280128,3104.4,3103.9,3.22171092]
[1767446369083,0.00280128,3104.4,3104.0,2.34769611]
[1767446369385,0.00280128,3104.4,3104.1,0.03221545]
[1767446369682,0.00280128,3104.4,3104.0,2.34769611]
[1767446369883,0.00280128,3104.4,3104.1,0.87921603]
[1767446371186,0.00280128,3104.4,3104.1,4.1007367]
[1767446372189,0.00280128,3104.4,3104.1,0.87921603]
[1767446375357,2.29522669,3104.4,3103.9,3.22271412]
[1767446377187,2.29522669,3104.4,3103.9,0.001]
[1767446377366,2.29522669,3104.4,3104.0,0.001]
[1767446380193,5.51647466,3104.4,3104.0,0.001]
[1767446380585,2.29522669,3104.4,3104.0,0.001]
[1767446401818,5.51647162,3104.4,3104.0,0.001]
[1767446402327,0.00280128,3104.4,3104.0,0.001]
[1767446402621,0.00280128,3104.4,3104.0,2.4623411]
[1767446407318,0.002,3104.6,3104.1,2.4613411]
[1767446407827,3.22252092,3105.1,3104.3,2.4613411]
[1767446408501,0.002,3104.4,3104.3,2.4613411]
[1767446408722,3.22252092,3105.1,3104.3,2.4613411]
[1767446409896,3.22252092,3105.1,3104.4,5.68257547]
[1767446410101,3.22252092,3105.1,3104.5,0.81439166]
[1767446410403,3.22252092,3105.1,3104.5,0.81239166]
[1767446417040,5.67043474,3105.1,3104.5,0.81239166]
[1767446417335,2.44791382,3104.8,3104.5,0.81239166]
[1767446417641,2.44791382,3104.8,3104.4,3.22123437]
[1767446417801,2.44791382,3104.8,3104.1,3.3063411]
[1767446418006,2.44791382,3104.8,3104.2,3.221378]
[1767446418407,2.44791382,3104.8,3104.1,4.06651801]
[1767446419339,2.44791382,3104.7,3104.0,3.22340176]
[1767446419541,2.44791382,3104.7,3104.0,4.06840176]
[1767446420628,2.44791382,3104.0,3103.6,0.00080144]
[1767446422417,2.44791382,3104.0,3103.3,0.001]
[1767446422622,2.44791382,3103.8,3103.3,0.001]
[1767446424854,6.44350654,3103.9,3103.3,0.001]
[1767446424855,2.44791382,3103.6,3103.3,0.001]
[1767446426017,2.44791382,3103.9,3103.3,0.001]
[1767446426511,5.66968911,3103.9,3103.3,0.001]
[1767446427225,6.55890325,3103.9,3103.3,0.001]
[1767446427645,2.44791382,3103.8,3103.3,0.001]
[1767446428036,3.22196088,3103.7,3103.3,0.001]
[1767446430820,2.29656883,3103.6,3103.3,0.001]
[1767446431725,3.22196088,3103.7,3103.3,0.001]
[1767446432144,5.51852971,3103.7,3103.3,0.001]
[1767446432354,2.29656883,3103.6,3103.3,0.001]
[1767446432729,3.22185707,3103.8,3103.3,0.001]
[1767446432926,0.96294138,3103.7,3103.3,0.001]
[1767446433126,3.25951021,3103.7,3103.3,0.001]
[1767446433821,0.96294138,3103.7,3103.3,0.001]
[1767446434245,2.29656883,3103.6,3103.3,0.001]
[1767446435052,4.18491096,3103.7,3103.3,0.001]
[1767446436854,2.29656883,3103.6,3103.3,0.001]
[1767446437354,4.18491096,3103.7,3103.3,0.001]
[1767446440837,0.96294138,3103.7,3103.3,0.001]
[1767446441042,4.18495352,3103.7,3103.3,0.001]
[1767446451031,4.18695352,3103.7,3103.3,0.001]
[1767446451257,3.22401214,3103.7,3103.3,0.001]
[1767446451559,8.74259311,3103.7,3102.9,0.001]
[1767446451767,2.29737091,3103.6,3102.9,0.001]
[1767446453162,3.22216851,3103.5,3102.9,0.001]
[1767446453363,2.29656883,3103.4,3102.9,0.001]
[1767446454264,2.29656883,3103.4,3102.8,0.00180152]
[1767446455047,8.74132119,3103.3,3102.8,0.00180152]
[1767446456068,2.29656883,3103.2,3102.8,0.00180152]
[1767446458468,3.22258386,3103.1,3102.8,0.00180152]
[1767446458658,4.09674914,3103.1,3102.8,0.00180152]
[1767446461276,0.87416528,3103.1,3102.8,0.00180152]
[1767446461463,5.51909261,3103.2,3102.8,0.00180152]
[1767446461973,3.22252378,3103.2,3102.8,0.00180152]
[1767446463772,3.22237618,3103.3,3102.8,0.00180152]
[1767446466290,3.22237618,3103.3,3102.8,2.42088457]
[1767446467441,3.22227234,3103.4,3102.8,2.42088457]
[1767446469781,3.22227234,3103.4,3103.0,2.41908305]
[1767446471562,0.00280208,3103.6,3103.0,2.41908305]
[1767446471786,0.64487238,3103.5,3103.0,2.41908305]
[1767446472391,0.00280208,3103.6,3103.0,2.41908305]
[1767446473361,0.002,3103.4,3103.0,2.41908305]
[1767446481867,0.002,3103.8,3103.5,2.41908305]
[1767446482274,3.22151792,3104.2,3103.7,2.41908305]
[1767446482462,3.22151792,3104.2,3103.7,2.66099136]
[1767446483592,8.86391834,3104.4,3103.7,2.66099136]
[1767446485491,2.4206145,3104.3,3103.7,2.66099136]
[1767446487598,3.22144191,3104.2,3103.7,2.66099136]
[1767446489489,3.22138608,3104.3,3103.7,2.66099136]
[1767446489876,0.00080136,3104.4,3103.7,2.66099136]
[1767446490068,8.79562295,3104.4,3103.7,2.66099136]
[1767446490292,0.002,3104.3,3103.7,2.66099136]
[1767446493987,2.3143257,3104.3,3103.7,2.66099136]
[1767446494190,2.3143257,3104.3,3103.7,2.41908305]
[1767446497095,3.22144191,3104.2,3103.7,2.41908305]
[1767446503009,3.22144458,3104.2,3103.7,2.41908305]
[1767446503312,5.53570348,3104.3,3103.7,2.41908305]
[1767446503693,3.22337778,3104.3,3103.7,2.41908305]
[1767446504413,0.002,3104.3,3103.7,2.41908305]
[1767446507010,0.002,3104.3,3103.8,2.29784674]
[1767446507595,0.002,3104.3,3103.8,2.81778843]
[1767446508980,0.002,3104.3,3103.8,6.03961479]
[1767446523325,0.002,3104.3,3103.8,2.81778843]
[1767446523697,0.002,3104.3,3103.8,2.26562817]
[1767446526209,2.40135067,3104.3,3103.6,5.63665779]
[1767446526630,2.40135067,3104.3,3103.8,0.001]
[1767446527906,0.002,3104.7,3104.1,2.41284098]
[1767446528108,0.002,3104.7,3104.2,2.44505539]
[1767446528501,0.002,3104.7,3104.2,2.41284098]
[1767446530207,0.002,3104.7,3104.2,3.24823598]
[1767446530408,0.002,3104.7,3104.2,6.46966905]
[1767446530730,0.002,3104.7,3104.2,3.24823598]
[1767446534834,0.002,3104.7,3104.2,6.46967567]
[1767446537631,0.002,3104.7,3104.3,2.41284098]
[1767446537934,0.002,3104.7,3104.4,0.64696757]
[1767446545241,2.40135067,3104.7,3104.2,0.835395]
[1767446545435,2.40135067,3104.7,3104.0,0.00180144]
[1767446545741,2.40135067,3104.7,3104.0,3.22339312]
[1767446547346,2.39935067,3104.5,3104.0,0.00180144]
[1767446550546,2.465216,3104.4,3104.0,0.00180144]
[1767446555425,2.465216,3104.6,3104.0,0.00180144]
[1767446555625,0.2467216,3104.5,3104.0,0.00180144]
[1767446556236,2.7119376,3104.5,3104.0,0.00180144]
[1767446556523,5.9330855,3104.5,3104.0,0.00180144]
[1767446560628,5.9350855,3104.5,3104.0,0.00180144]
[1767446567628,2.7139376,3104.5,3104.0,0.00180144]
[1767446567835,2.467216,3104.5,3104.0,0.00180144]
[1767446569159,5.68835993,3104.5,3104.0,0.00180144]
[1767446572568,0.002,3104.5,3104.0,2.42886682]
[1767446579657,0.002,3104.5,3104.1,2.29953287]
[1767446579861,0.002,3104.5,3104.1,2.33174832]
[1767446580803,0.002,3104.5,3104.1,2.29953287]
[1767446584805,0.002,3104.5,3104.1,5.52105064]
[1767446585362,0.002,3104.5,3104.2,2.29953287]
[1767446587684,0.002,3104.5,3104.2,5.52096653]
[1767446591398,0.002,3104.5,3104.2,2.29953287]
[1767446594587,0.002,3104.5,3104.1,0.87445793]
[1767446595212,2.29844397,3104.5,3104.0,0.00180144]
[1767446595888,0.002,3104.5,3104.2,2.29953287]
[1767446596476,0.002,3104.5,3104.0,0.00180144]
[1767446596674,2.29844397,3104.5,3104.0,0.00180144]
[1767446598412,2.29844397,3104.5,3104.0,3.22344857]
[1767446598598,2.29844397,3104.5,3104.0,0.00180144]
[1767446603413,0.002,3104.5,3104.0,2.30133431]
[1767446603704,0.002,3104.5,3104.0,3.17591839]
[1767446603899,0.002,3104.5,3104.1,2.29953287]
[1767446604712,0.002,3105.0,3104.8,2.29953287]
[1767446606281,0.002,3105.0,3104.8,5.52034628]
[1767446607489,0.002,3105.2,3104.9,2.29953287]
[1767446607719,0.00866204,3105.3,3105.0,2.29953287]
[1767446611317,0.00866204,3105.3,3105.0,5.52013614]
[1767446611792,0.00866204,3105.3,3105.0,2.29953287]
[1767446612315,0.00866204,3105.3,3105.0,5.52013084]
[1767446612491,0.00866204,3105.3,3105.0,6.44942915]
[1767446612992,0.00866204,3105.3,3105.0,3.22883118]
[1767446613187,0.00866204,3105.3,3105.0,6.44944102]
[1767446614400,0.00866204,3105.3,3105.0,3.22883118]
[1767446614730,0.00866204,3105.3,3105.0,6.44943903]
[1767446614926,0.00866204,3105.3,3105.0,2.29953287]
[1767446615125,0.00866204,3105.3,3105.0,5.52013489]
[1767446616296,0.00866204,3105.3,3105.0,2.29953287]
[1767446616712,0.00866204,3105.3,3105.0,5.52012712]
[1767446617015,0.00866204,3105.3,3105.0,6.44942517]
[1767446617225,0.00866204,3105.3,3105.1,2.38221675]
[1767446618825,0.002,3105.7,3105.3,2.38221675]
[1767446621202,0.002,3105.7,3105.4,2.38221675]
[1767446623129,0.002,3105.7,3105.5,3.22009338]
[1767446623332,0.002,3105.8,3105.6,2.94244776]
[1767446623625,0.002,3105.8,3105.6,0.56023101]
[1767446632442,0.002,3105.8,3105.5,4.06507395]
[1767446633313,0.002,3105.8,3105.5,0.845]
[1767446633938,0.002,3105.8,3105.4,2.38221675]
[1767446634235,0.002,3105.8,3105.5,0.845]
[1767446634436,0.002,3105.8,3105.2,5.60257715]
[1767446634641,0.002,3105.8,3105.3,4.06530046]
[1767446635511,0.002,3105.8,3105.3,3.22030046]
[1767446635719,2.31727837,3105.8,3105.4,0.845]
[1767446636338,2.31727837,3105.8,3105.2,5.6025553]
[1767446636542,2.31727837,3105.8,3105.4,0.845]
[1767446637246,2.87144438,3105.8,3105.2,0.845]
[1767446638047,2.31527837,3105.7,3105.2,0.845]
[1767446638420,2.31527837,3105.7,3105.2,4.06538937]
[1767446639943,0.0028008,3105.9,3105.5,5.56773199]
[1767446640143,0.0028008,3105.9,3105.5,6.44652949]
[1767446641446,0.0028008,3105.9,3105.6,2.34769706]
[1767446641668,0.002,3105.8,3105.5,4.09883243]
[1767446642445,0.002,3105.8,3105.5,6.44652949]
[1767446646426,0.002,3105.8,3105.6,2.34769706]
[1767446647553,0.002,3105.8,3105.5,4.09883243]
[1767446647854,0.002,3105.8,3105.4,5.56885489]
[1767446648758,0.002,3105.8,3105.5,0.845]
[1767446651449,0.002,3105.8,3105.5,4.06509056]
[1767446653165,0.002,3105.8,3105.5,0.845]
[1767446653365,0.002,3105.8,3105.5,4.06508524]
[1767446654061,0.002,3105.8,3105.5,0.845]
[1767446655639,0.002,3105.8,3105.5,6.41276469]
[1767446655841,0.002,3105.8,3105.6,0.64137647]
[1767446656071,0.002,3105.8,3105.6,2.98907353]
[1767446658661,0.002,3105.8,3105.5,0.846]
[1767446660168,2.4950452,3105.8,3105.5,0.001]
[1767446661072,0.002,3105.8,3105.5,0.001]
[1767446662178,0.002,3105.8,3105.5,3.22109338]
[1767446664707,1e-08,3106.6,3106.2,2.34769706]
[1767446664977,0.002,3107.0,3106.4,2.34849754]
[1767446665365,0.002,3107.0,3106.4,0.00080048]
[1767446665366,2.03017162,3107.0,3106.4,0.00080048]
[1767446665550,2.03017162,3107.0,3106.5,0.845]
[1767446666153,5.24871706,3107.0,3106.5,0.845]
[1767446666363,2.02817162,3106.8,3106.4,0.84580048]
[1767446666565,2.02817162,3106.8,3106.4,0.00080048]
[1767446666747,5.24881262,3107.0,3106.4,0.00080048]
[1767446666950,2.02817162,3106.9,3106.4,0.00080048]
[1767446667149,2.02817162,3106.9,3105.9,0.00080056]
[1767446667367,2.02817162,3106.7,3106.0,0.845]
[1767446668655,2.02817162,3106.6,3106.0,0.845]
[1767446669275,2.02817162,3106.6,3106.0,4.06457163]
[1767446669478,2.02817162,3106.6,3106.0,0.845]
[1767446670582,2.02817162,3106.5,3105.9,3.22043801]
[1767446670788,2.55288678,3106.5,3105.9,4.06543801]
[1767446671077,2.02817162,3106.4,3105.9,4.06543801]
[1767446671285,2.02817162,3106.4,3105.9,0.84580056]
[1767446672693,2.02817162,3106.4,3105.9,0.00080056]
[1767446672854,2.02817162,3106.4,3105.9,0.84580056]
[1767446673057,2.60536627,3106.4,3105.9,0.84580056]
[1767446673259,0.57719465,3106.4,3106.0,2.48352435]
[1767446673480,0.00080048,3106.8,3106.0,2.48352435]
[1767446673666,3.21955033,3106.8,3106.2,2.48352435]
[1767446674882,0.002,3106.5,3106.2,2.48352435]
[1767446675392,0.002,3106.5,3106.3,2.48352435]
[1767446676098,0.002,3106.5,3106.1,3.21944296]
[1767446676977,0.002,3106.5,3106.0,5.70309936]
[1767446677179,0.002,3106.5,3106.1,2.48352435]
[1767446678690,0.002,3106.5,3106.0,3.21957501]
[1767446679193,0.002,3106.5,3106.1,2.48352435]
[1767446679399,0.002,3106.5,3106.0,5.70309936]
[1767446679787,0.002,3106.5,3106.1,2.48352435]
[1767446680091,2.03017162,3106.5,3106.0,3.21957501]
[1767446680292,2.03017162,3106.5,3105.9,3.22044007]
[1767446680476,2.03017162,3106.5,3106.1,0.845]
[1767446680676,2.03017162,3106.5,3106.0,0.845]
[1767446682085,2.02817162,3106.4,3106.0,0.845]
[1767446682393,2.02817162,3106.4,3105.9,3.22044007]
[1767446682765,2.02817162,3106.4,3106.0,0.845]
[1767446683578,0.52691564,3106.5,3106.0,0.845]
[1767446683778,2.55508726,3106.5,3106.0,0.845]
[1767446684001,2.55508726,3106.5,3105.9,3.22044007]
[1767446684197,0.002,3106.5,3106.0,2.48352435]
[1767446684591,0.002,3106.5,3106.1,2.48352435]
[1767446686699,2.03017162,3106.5,3105.7,0.845]
[1767446686884,0.00080056,3106.3,3105.7,3.32852435]
[1767446687279,2.2320694,3106.3,3105.7,2.48352435]
[1767446688209,2.2320694,3106.3,3105.7,5.70339983]
[1767446689204,2.02817162,3106.2,3106.0,0.001]
[1767446690910,5.24754148,3106.2,3106.0,0.001]
[1767446691208,2.02817162,3106.2,3106.0,0.001]
[1767446691398,2.57330872,3106.2,3106.0,0.001]
[1767446692011,0.5451371,3106.2,3106.0,0.001]
[1767446696514,3.76451285,3106.2,3106.0,0.001]
[1767446697016,3.76451057,3106.2,3106.0,0.001]
[1767446708428,3.76651057,3106.2,3106.0,0.001]
[1767446708733,0.6986582,3106.1,3105.9,0.001]
[1767446708929,2.02817162,3106.0,3105.5,0.00180088]
[1767446710229,3.21967867,3105.9,3105.5,0.00180088]
[1767446710615,3.21967867,3105.9,3105.3,2.25607632]
[1767446710616,8.46752896,3105.9,3105.3,2.25607632]
[1767446710821,0.32196787,3105.8,3105.1,2.25607632]
[1767446711823,2.35013949,3105.8,3105.1,2.25607632]
[1767446712198,6.43977202,3105.7,3105.1,2.25607632]
[1767446712423,8.46794364,3105.7,3105.1,2.25607632]
[1767446712609,0.87899115,3105.6,3105.1,2.25607632]
[1767446713423,2.90716277,3105.6,3105.0,0.00180088]
[1767446714528,6.44018676,3105.5,3105.0,0.00180088]
[1767446714732,8.46835838,3105.5,3105.0,0.00180088]
[1767446716712,2.02817162,3105.4,3105.0,0.00180088]
[1767446716912,2.87500746,3105.3,3105.0,0.00180088]
[1767446717130,2.02817162,3105.2,3104.8,0.001]
[1767446717902,2.02817162,3105.2,3105.0,0.001]
[1767446718103,2.02817162,3105.2,3104.7,0.001]
[1767446718717,0.84683584,3105.3,3104.7,0.001]
[1767446718718,2.02817162,3105.0,3104.7,0.001]
[1767446719032,2.87509042,3105.0,3104.7,0.001]
[1767446720039,0.8469188,3105.0,3104.7,0.001]
[1767446720706,3.22071564,3104.9,3104.7,0.001]
[1767446729921,8.4696029,3104.9,3104.5,0.00080168]
[1767446730419,2.02817162,3104.8,3104.2,2.35295428]
[1767446730619,2.95982379,3104.8,3104.2,2.35295428]
[1767446731047,2.39918846,3104.7,3104.1,0.001]
[1767446731244,6.44205372,3104.6,3104.1,0.001]
[1767446731624,8.84124218,3104.6,3104.1,0.001]
[1767446731821,9.81853162,3104.6,3104.1,0.001]
[1767446732027,6.59750476,3104.6,3104.1,0.001]
[1767446732426,9.81853162,3104.6,3104.1,0.001]
[1767446740456,9.82053162,3104.6,3104.1,0.001]
[1767446742325,7.42134316,3104.6,3104.1,0.001]
[1767446743755,0.74213432,3104.5,3104.1,0.001]
[1767446749273,3.22123437,3104.4,3104.1,0.001]
[1767446749636,6.44246874,3104.4,3104.1,0.001]
[1767446749972,3.22123437,3104.4,3104.1,0.001]
[1767446753146,6.44246874,3104.4,3104.1,0.001]
[1767446753450,0.68328482,3104.3,3104.1,0.001]
[1767446753854,3.22144191,3104.2,3104.1,0.001]
[1767446757676,0.002,3104.4,3104.1,0.001]
[1767446758174,3.22326047,3104.4,3104.1,0.001]
[1767446761389,6.44452094,3104.4,3104.1,0.001]
[1767446762011,7.39182709,3104.4,3104.1,0.001]
[1767446762159,9.67623335,3104.4,3104.1,0.001]
[1767446762665,2.28440626,3104.3,3104.1,0.001]
[1767446763389,3.22144191,3104.2,3104.1,0.001]
[1767446769610,3.22144191,3104.2,3103.8,0.001]
[1767446769611,8.72729008,3104.2,3103.8,0.001]
[1767446769782,9.14436489,3104.2,3103.8,0.001]
[1767446772393,2.28440626,3104.1,3103.4,0.001]
[1767446772707,2.28520778,3104.0,3103.4,0.001]
[1767446773912,3.22175327,3103.9,3103.4,0.001]
[1767446774110,4.09461849,3103.9,3103.8,0.001]
[1767446781816,4.09461849,3103.9,3103.4,0.001]
[1767446781817,7.31637176,3103.9,3103.4,0.001]
[1767446782319,9.60077802,3103.9,3103.4,0.001]
[1767446782512,6.37902475,3103.9,3103.8,0.001]
[1767446782817,2.28440626,3103.8,3103.4,0.001]
[1767446783611,7.31637176,3103.9,3103.4,0.001]
[1767446783819,0.96015795,3103.8,3103.4,2.39541384]
[1767446784125,0.96015795,3103.8,3103.2,0.00080216]
[1767446784292,3.24456421,3103.8,3103.2,0.00080216]
[1767446784687,3.22206469,3103.6,3103.2,0.00080216]
[1767446785122,3.22206469,3103.6,3103.2,0.65990372]
[1767446785807,3.22206469,3103.6,3103.2,0.00080216]
[1767446786014,6.44412938,3103.6,3103.2,0.00080216]
[1767446786905,8.72832802,3103.7,3103.2,0.00080216]
[1767446787120,9.25894197,3103.7,3103.2,0.00080216]
[1767446790726,2.46922046,3103.6,3103.2,0.00080216]
[1767446792598,6.44433702,3103.5,3103.2,0.00080216]
[1767446793397,8.91555748,3103.5,3103.2,0.00080216]
[1767446793818,2.47122046,3103.4,3103.0,0.001]
[1767446794022,2.47122046,3103.3,3103.0,0.001]
[1767446794230,0.89155575,3103.4,3103.0,0.001]
[1767446794913,3.22237618,3103.3,3103.0,0.001]
[1767446795234,6.44475236,3103.3,3103.0,0.001]
[1767446796431,3.22237618,3103.3,3103.0,0.001]
[1767446800040,6.44475236,3103.3,3103.0,0.001]
[1767446800345,0.73362262,3103.2,3102.8,0.00180152]
[1767446800521,6.44475236,3103.3,3102.8,0.00180152]
[1767446804558,4.11387653,3103.4,3102.8,0.00180152]
[1767446804843,3.22232078,3103.4,3102.8,0.00180152]
[1767446806656,3.22293941,3103.6,3102.8,0.00180152]
[1767446808256,6.44510561,3103.6,3102.8,0.00180152]
[1767446809579,8.91632607,3103.6,3102.8,0.00180152]
[1767446809927,5.69415987,3103.6,3102.8,0.00180152]
[1767446810133,0.00080216,3103.6,3102.8,0.00180152]
[1767446810344,0.00080216,3103.6,3102.8,0.03403047]
[1767446811657,0.00080216,3103.6,3102.9,3.22279158]
[1767446812255,0.00080216,3103.6,3102.9,6.44558316]
[1767446812826,0.002,3103.9,3103.2,0.00080224]
[1767446813029,0.002,3103.9,3103.2,1.80261606]
[1767446813233,0.002,3103.9,3103.2,0.00080224]
[1767446817096,0.002,3103.9,3103.2,0.03302704]
[1767446818166,0.002,3103.9,3103.3,6.44475236]
[1767446824343,0.00080152,3104.0,3103.3,6.44475236]
[1767446827573,2.3221838,3103.9,3103.3,6.44475236]
[1767446827773,0.00080152,3104.0,3103.4,0.64777794]
[1767446828072,2.3221838,3103.9,3103.5,0.845]
[1767446829855,2.3221838,3103.9,3103.6,3.22206469]
[1767446832267,0.00280152,3104.0,3103.6,6.44412938]
[1767446832453,2.32498532,3104.0,3103.6,6.44412938]
[1767446832646,2.32498532,3104.0,3103.6,3.22206469]
[1767446833678,0.00280152,3104.0,3103.7,2.45398176]
[1767446835575,0.00280152,3104.0,3103.7,5.67588989]
[1767446837988,0.00280152,3104.0,3103.8,2.45398176]
[1767446841363,0.00280152,3104.0,3103.6,5.67600513]
[1767446841594,0.002,3104.2,3103.7,2.45398176]
[1767446841962,0.002,3104.2,3103.7,5.67588081]
[1767446842374,0.002,3104.2,3103.8,3.22185324]
[1767446842557,0.00280144,3104.4,3103.9,2.45398176]
[1767446842775,0.00280144,3104.4,3104.0,2.45398176]
[1767446844366,0.00280144,3104.4,3104.1,2.45398176]
[1767446844572,0.17017245,3104.6,3104.1,2.45398176]
[1767446846676,0.17017245,3104.6,3104.2,3.22144191]
[1767446847311,0.002,3104.4,3104.2,3.22144191]
[1767446847474,0.002,3104.4,3104.3,0.56754237]
[1767446847677,0.17017245,3104.6,3104.3,0.56754237]
[1767446847878,2.3221838,3104.8,3104.3,0.56754237]
[1767446848990,2.3221838,3104.8,3104.3,3.78883559]
[1767446849699,0.00080168,3104.9,3104.3,3.78883559]
[1767446849880,0.00080168,3104.9,3104.3,6.04816566]
[1767446850596,5.65198574,3104.9,3104.3,6.04816566]
[1767446851014,5.65198574,3104.9,3104.3,2.82687244]
[1767446852603,2.43126453,3104.9,3104.3,2.82687244]
[1767446852804,0.002,3105.0,3104.5,2.25933007]